fUSD/lending_fUSD_20251105
["ID","MTS","AMOUNT","RATE_DAILY","PERIOD"]
[393231984,1762360542483,3388.52,0.000168,2]
[393231985,1762360542506,4067.44052516,0.000168,2]
[393231986,1762360545853,1000.0,0.00017,10]
[393231993,1762360588997,250.40241898,0.000168,2]
[393231995,1762360598261,579.51367004,0.000168,2]
[393231996,1762360598586,579.51367003,0.000168,2]
[393232004,1762360640562,498.6163,0.00016797,2]
[393232005,1762360644899,-490.0,0.00016851,2]
[393232006,1762360644929,-300.0,0.00016873,2]
[393232007,1762360644961,-300.0,0.00016888,2]
[393232008,1762360644991,-300.0,0.00016888,2]
[393232009,1762360645023,-506.11150163,0.00016895,2]
[393232012,1762360647800,-3792.22300326,0.00016895,2]
[393232015,1762360653921,-2415.56399348,0.00016895,2]
[393232016,1762360653952,-300.0,0.00016895,2]
[393232017,1762360653982,-1200.0,0.00016896,2]
[393232018,1762360654018,-300.0,0.00016896,2]
[393232019,1762360657026,-2466.4595,0.00016897,2]
[393232033,1762360721704,185.09236968,0.000168,2]
[393232034,1762360726302,1035.9444,0.00016797,2]
[393232050,1762360759178,170.76,0.00012865,2]
[393232051,1762360759384,170.76,0.0001501,2]
[393232054,1762360766388,206.9,0.00016081,2]
[393232062,1762360778976,2834.5361,0.000168,2]
[393232065,1762360784080,463.09813032,0.00016356,2]
[393232066,1762360784102,36.90186968,0.00016356,2]
[393232074,1762360809871,500.0,0.00016795,2]
[393232076,1762360817112,639.15317466,0.000168,2]
[393232091,1762360869183,219.10211659,0.000168,2]
[393232095,1762360899901,2751.0,0.00016076,2]
[393232098,1762360907808,893.58488772,0.00016836,2]
[393232102,1762360914662,4960.26795135,0.000168,2]
[393232103,1762360914696,1630.33774097,0.000168,2]
[393232107,1762360928832,7561.3481419,0.000168,2]
[393232120,1762360958485,500.0,0.00016356,2]
[393232121,1762360958807,308.32411713,0.00016356,2]
[393232122,1762360958830,191.67588287,0.00016356,2]
[393232123,1762361039814,221.75791629,0.00016809,2]
[393232124,1762361053217,2500.0,0.000168,2]
[393232125,1762361056854,166.58313273,0.000168,2]
[393232126,1762361127217,7333.42686727,0.0001601,2]
[393232127,1762361127241,520.17313273,0.0001601,2]
[393232132,1762361156142,250.0,0.0001601,2]
[393232134,1762361169387,191.71435199,0.000168,2]
[393232135,1762361225799,2500.0,0.00016799,2]
[393232139,1762361315294,6538.12251528,0.000168,2]
[393232140,1762361315318,336.3849103,0.000168,2]
[393232148,1762361378098,9663.6250897,0.00016076,2]
[393232149,1762361378121,336.3849103,0.00016076,2]
[393232158,1762361393443,165.81245706,0.000168,2]
[393232160,1762361405584,893.58488772,0.00016751,2]
[393232169,1762361424847,6104.08744634,0.00016791,2]
[393232172,1762361430362,2500.14029858,0.00016057,2]
[393232173,1762361430387,7520.88970142,0.00016057,2]
[393232190,1762361431845,-300.0,0.00016889,2]
[393232191,1762361431856,-305.0,0.00016889,2]
[393232192,1762361431866,-1200.0,0.00016889,2]
[393232193,1762361431877,-300.0,0.00016889,2]
[393232194,1762361431889,-195.0,0.00016889,2]
[393232195,1762361431899,-500.0,0.0001689,2]
[393232196,1762361431910,-200.0,0.0001689,2]
[393232197,1762361431921,-500.0,0.0001689,2]
[393232198,1762361431932,-151.0,0.0001689,2]
[393232199,1762361431943,-500.0,0.0001689,2]
[393232200,1762361431956,-151.0,0.0001689,2]
[393232201,1762361431967,-500.0,0.0001689,2]
[393232202,1762361431979,-151.0,0.0001689,2]
[393232203,1762361431989,-500.0,0.0001689,2]
[393232204,1762361432002,-151.0,0.0001689,2]
[393232205,1762361432012,-500.0,0.0001689,2]
[393232206,1762361432024,-151.0,0.0001689,2]
[393232207,1762361432254,-500.0,0.0001689,2]
[393232208,1762361432268,-151.0,0.0001689,2]
[393232209,1762361432280,-500.0,0.0001689,2]
[393232210,1762361432291,-500.0,0.0001689,2]
[393232211,1762361432302,-151.0,0.0001689,2]
[393232212,1762361432312,-200.0,0.0001689,2]
[393232213,1762361432323,-500.0,0.0001689,2]
[393232214,1762361432334,-151.0,0.0001689,2]
[393232215,1762361432344,-500.0,0.0001689,2]
[393232216,1762361432354,-151.0,0.0001689,2]
[393232217,1762361432366,-500.0,0.0001689,2]
[393232218,1762361432376,-151.0,0.0001689,2]
[393232219,1762361432387,-151.0,0.0001689,2]
[393232220,1762361432396,-151.0,0.0001689,2]
[393232221,1762361432407,-200.0,0.0001689,2]
[393232222,1762361432417,-151.0,0.0001689,2]
[393232223,1762361432428,-151.0,0.0001689,2]
[393232224,1762361432438,-151.0,0.0001689,2]
[393232225,1762361432450,-151.0,0.0001689,2]
[393232226,1762361432460,-151.0,0.0001689,2]
[393232227,1762361432470,-151.0,0.0001689,2]
[393232228,1762361432480,-151.0,0.0001689,2]
[393232229,1762361432491,-151.0,0.0001689,2]
[393232230,1762361432501,-151.0,0.0001689,2]
[393232231,1762361432512,-151.0,0.0001689,2]
[393232232,1762361432523,-151.0,0.0001689,2]
[393232234,1762361432532,-151.0,0.0001689,2]
[393232237,1762361432543,-151.0,0.0001689,2]
[393232238,1762361432552,-151.0,0.0001689,2]
[393232239,1762361432562,-151.0,0.0001689,2]
[393232240,1762361432573,-151.0,0.0001689,2]
[393232242,1762361432583,-151.0,0.0001689,2]
[393232244,1762361432594,-151.0,0.0001689,2]
[393232247,1762361432604,-151.0,0.0001689,2]
[393232248,1762361432615,-151.0,0.0001689,2]
[393232249,1762361432625,-151.0,0.0001689,2]
[393232250,1762361432636,-151.0,0.0001689,2]
[393232251,1762361432646,-154.36347057,0.0001689,2]
[393232252,1762361432656,-274.21394915,0.0001689,2]
[393232253,1762361432667,-38695.54128978,0.00016895,2]
[393232254,1762361432715,-500.0,0.0001689,2]
[393232255,1762361432726,-351.08,0.0001689,2]
[393232256,1762361432737,-500.0,0.0001689,2]
[393232257,1762361432749,-1349.75141331,0.0001689,2]
[393232258,1762361432760,-21439.51634359,0.00016895,2]
[393232259,1762361432774,-12466.64590456,0.00016895,2]
[393232260,1762361432783,-166.56196739,0.00016897,2]
[393232261,1762361432793,-151.0,0.00016897,2]
[393232262,1762361432803,-500.0,0.00016899,2]
[393232263,1762361432813,-165.34331442,0.00016899,2]
[393232264,1762361432823,-773.8,0.00016899,2]
[393232265,1762361432833,-500.0,0.00016899,2]
[393232266,1762361432844,-183.05138736,0.00016899,2]
[393232267,1762361432853,-500.0,0.00016899,2]
[393232268,1762361432863,-500.0,0.00016899,2]
[393232269,1762361432873,-555.2474,0.000169,2]
[393232270,1762361432884,-173183.55972214,0.000169,2]
[393232271,1762361432896,-40496.84161416,0.000169,2]
[393232272,1762361432907,-70836.55243635,0.000169,2]
[393232273,1762361432919,-298.45475,0.000169,2]
[393232274,1762361432943,-531.6928,0.0001689,2]
[393232275,1762361432955,-282.2869998,0.0001689,2]
[393232276,1762361432984,-535.77161351,0.0001689,2]
[393232277,1762361432994,-891.23733647,0.0001689,2]
[393232278,1762361433007,-458.51407684,0.0001689,2]
[393232279,1762361433017,-5480.72931367,0.000169,2]
[393232291,1762361437740,-1349.75141331,0.0001689,2]
[393232292,1762361437752,-1349.75141331,0.0001689,2]
[393232293,1762361437762,-493.39717338,0.0001689,2]
[393232294,1762361437776,-856.35423993,0.0001689,2]
[393232295,1762361437786,-1349.75141331,0.0001689,2]
[393232296,1762361437797,-1349.75141331,0.0001689,2]
[393232297,1762361437807,-1102.27024442,0.0001689,2]
[393232298,1762361437819,-247.48116889,0.0001689,2]
[393232299,1762361437829,-1349.75141331,0.0001689,2]
[393232300,1762361437839,-1307.21804858,0.0001689,2]
[393232301,1762361437851,-42.53336473,0.0001689,2]
[393232303,1762361437861,-1061.34152169,0.0001689,2]
[393232308,1762361439962,-288.40989162,0.0001689,2]
[393232309,1762361439972,-1349.75141331,0.0001689,2]
[393232310,1762361439982,-1349.75141331,0.0001689,2]
[393232311,1762361439992,-1349.75141331,0.0001689,2]
[393232312,1762361440001,-1349.75141331,0.0001689,2]
[393232313,1762361440010,-1349.75141331,0.0001689,2]
[393232314,1762361440019,-1349.75141331,0.0001689,2]
[393232315,1762361440029,-1349.75141331,0.0001689,2]
[393232316,1762361440038,-1349.75141331,0.0001689,2]
[393232317,1762361440047,-1349.75141331,0.0001689,2]
[393232318,1762361440057,-1349.75141331,0.0001689,2]
[393232319,1762361440066,-1349.75141331,0.0001689,2]
[393232320,1762361440076,-1349.75141331,0.0001689,2]
[393232321,1762361440085,-1349.75141331,0.0001689,2]
[393232322,1762361440094,-1349.75141331,0.0001689,2]
[393232323,1762361440104,-1349.75141331,0.0001689,2]
[393232324,1762361440113,-1349.75141331,0.0001689,2]
[393232325,1762361440123,-1349.75141331,0.0001689,2]
[393232326,1762361440132,-1349.75141331,0.0001689,2]
[393232327,1762361440142,-1349.75141331,0.0001689,2]
[393232328,1762361440152,-1349.75141331,0.0001689,2]
[393232329,1762361440161,-1349.75141331,0.0001689,2]
[393232330,1762361440171,-1349.75141331,0.0001689,2]
[393232331,1762361440182,-1349.75141331,0.0001689,2]
[393232332,1762361440192,-1349.75141331,0.0001689,2]
[393232333,1762361440207,-1349.75141331,0.0001689,2]
[393232334,1762361440217,-1349.75141331,0.0001689,2]
[393232335,1762361440227,-1349.75141331,0.0001689,2]
[393232336,1762361440236,-1349.75141331,0.0001689,2]
[393232337,1762361440246,-1349.75141331,0.0001689,2]
[393232338,1762361440255,-1349.75141331,0.0001689,2]
[393232339,1762361440265,-1349.75141331,0.0001689,2]
[393232340,1762361440276,-1349.75141331,0.0001689,2]
[393232341,1762361440285,-1349.75141331,0.0001689,2]
[393232342,1762361440295,-1349.75141331,0.0001689,2]
[393232343,1762361440304,-1349.75141331,0.0001689,2]
[393232344,1762361440314,-1349.75141331,0.0001689,2]
[393232345,1762361440323,-1349.75141331,0.0001689,2]
[393232346,1762361440332,-1349.75141331,0.0001689,2]
[393232347,1762361440342,-1349.75141331,0.0001689,2]
[393232348,1762361440351,-1349.75141331,0.0001689,2]
[393232349,1762361440360,-1349.75141331,0.0001689,2]
[393232350,1762361440370,-1349.75141331,0.0001689,2]
[393232351,1762361440379,-1349.75141331,0.0001689,2]
[393232352,1762361440390,-1349.75141331,0.0001689,2]
[393232353,1762361440403,-129703.86216368,0.000169,2]
[393232354,1762361440414,-1000.0,0.000169,2]
[393232355,1762361440424,-150.99,0.000169,2]
[393232356,1762361440434,-152.68180344,0.000169,2]
[393232357,1762361440444,-152.68180344,0.000169,2]
[393232358,1762361440457,-6104.08744626,0.00016914,2]
[393232359,1762361440467,-6874.50742558,0.00016922,2]
[393232360,1762361440477,-165.81245706,0.00016922,2]
[393232361,1762361440487,-8635.95,0.00016929,2]
[393232362,1762361440497,-106617.28420242,0.0001693,2]
[393232363,1762361440507,-191.71435199,0.00016957,2]
[393232364,1762361440518,-2640.0,0.00016961,2]
[393232365,1762361440528,-5000.0,0.00016993,2]
[393232366,1762361440538,-9560.44544483,0.00016993,2]
[393232367,1762361440549,-178.86631507,0.00016993,2]
[393232368,1762361440560,-339.70330614,0.00016993,2]
[393232369,1762361440570,-500.0,0.00016999,2]
[393232370,1762361440580,-500.0,0.00016999,2]
[393232371,1762361440589,-500.0,0.00016999,2]
[393232372,1762361440602,-500.0,0.00016999,2]
[393232373,1762361440611,-500.0,0.00016999,2]
[393232374,1762361440620,-500.0,0.00016999,2]
[393232375,1762361440629,-216.24667723,0.00017,2]
[393232376,1762361440639,-1638.49,0.00017,2]
[393232377,1762361440649,-250.0,0.00017,2]
[393232378,1762361440658,-2640.0,0.00017005,2]
[393232379,1762361440667,-500.0,0.00017016,2]
[393232380,1762361440676,-6104.08744626,0.00017037,2]
[393232381,1762361440686,-6874.50742558,0.00017044,2]
[393232382,1762361440696,-165.81245706,0.00017044,2]
[393232383,1762361440707,-214.42,0.00017059,2]
[393232384,1762361440716,-500.0,0.00017068,2]
[393232385,1762361440725,-427.0,0.00017068,2]
[393232386,1762361440735,-633.34107143,0.00017083,2]
[393232387,1762361440744,-427980.4475018,0.00017093,2]
[393232388,1762361440753,-114718.3219765,0.00017093,2]
[393232389,1762361440762,-8416.3285597,0.00017093,2]
[393232390,1762361440771,-336.6994704,0.00017093,2]
[393232391,1762361440781,-402.0330161,0.00017093,2]
[393232392,1762361440790,-4603.137105,0.00017093,2]
[393232393,1762361440802,-3528.8775301,0.00017093,2]
[393232394,1762361440811,-379.02356425,0.00017099,2]
[393232395,1762361440821,-200.0,0.000171,2]
[393232396,1762361440830,-180.80476,0.000171,2]
[393232397,1762361440840,-180.80476,0.000171,2]
[393232398,1762361440850,-180.80476,0.000171,2]
[393232399,1762361440860,-180.80477,0.000171,2]
[393232400,1762361440870,-180.80476,0.000171,2]
[393232401,1762361440881,-180.80477,0.000171,2]
[393232402,1762361440891,-1000.0,0.000171,2]
[393232403,1762361440900,-191.71435199,0.00017114,2]
[393232404,1762361440910,-258.34516986,0.00017122,2]
[393232405,1762361440920,-593.0,0.00017142,2]
[393232406,1762361440930,-500.0,0.00017151,2]
[393232407,1762361440939,-170.76,0.00017154,2]
[393232408,1762361440949,-6874.50742558,0.00017167,2]
[393232409,1762361440959,-165.81245706,0.00017167,2]
[393232410,1762361440969,-704.0,0.00017171,2]
[393232411,1762361440979,-773.8,0.00017173,2]
[393232412,1762361440988,-2640.0,0.00017176,2]
[393232413,1762361441000,-330.55,0.00017196,2]
[393232414,1762361441010,-5888.0,0.00017198,2]
[393232415,1762361441020,-500.0,0.00017199,2]
[393232416,1762361441030,-500.0,0.00017199,2]
[393232417,1762361441039,-500.0,0.00017199,2]
[393232418,1762361441048,-514.39450058,0.00017199,2]
[393232419,1762361441062,-356.9911856,0.000172,2]
[393232420,1762361441079,-177.11,0.0001723,2]
[393232421,1762361441095,-200.0,0.00017271,2]
[393232422,1762361441109,-191.71435199,0.00017271,2]
[393232423,1762361441125,-502.06124753,0.00017273,2]
[393232424,1762361441142,-500.0,0.00017273,2]
[393232425,1762361441158,-217.68277019,0.00017273,2]
[393232426,1762361441172,-500.0,0.00017273,2]
[393232427,1762361441191,-501.49023745,0.00017273,2]
[393232428,1762361441209,-404.77706377,0.00017273,2]
[393232429,1762361441226,-361.27134346,0.00017273,2]
[393232430,1762361441242,-500.0,0.00017273,2]
[393232431,1762361441259,-589.5458966,0.00017273,2]
[393232432,1762361441277,-153.47403075,0.00017273,2]
[393232433,1762361441291,-180.19074985,0.00017273,2]
[393232434,1762361441306,-504.57189243,0.00017273,2]
[393232435,1762361441320,-374.70917724,0.00017273,2]
[393232436,1762361441334,-500.0,0.00017273,2]
[393232437,1762361441352,-500.0,0.00017273,2]
[393232438,1762361441367,-501.35810388,0.00017273,2]
[393232439,1762361441379,-500.0,0.00017273,2]
[393232440,1762361441393,-500.0,0.00017273,2]
[393232441,1762361441411,-500.0,0.00017273,2]
[393232442,1762361441424,-174.55969353,0.00017288,2]
[393232443,1762361441435,-6874.50742558,0.00017289,2]
[393232444,1762361441448,-165.81245706,0.00017289,2]
[393232445,1762361441465,-300.0,0.00017299,2]
[393232446,1762361441477,-300.0,0.00017299,2]
[393232447,1762361441489,-666.0,0.00017299,2]
[393232448,1762361441502,-666.0,0.00017299,2]
[393232449,1762361441516,-525963.61754986,0.000173,2]
[393232450,1762361441577,-722.54248001,0.00017161,2]
[393232451,1762361441600,-4280.91837552,0.00017161,2]
[393232452,1762361441619,-281.47461043,0.00017161,2]
[393232453,1762361441640,-401.87900004,0.00017161,2]
[393232454,1762361441659,-417.27298026,0.00017161,2]
[393232455,1762361441675,-912.8094185,0.000173,2]
[393232456,1762361441692,-5253.41323589,0.000173,2]
[393232468,1762361442800,-151.0,0.00017273,2]
[393232469,1762361442814,-185933.4307299,0.000173,2]
[393232470,1762361442833,-4507.725034,0.000173,2]
[393232471,1762361442959,-16846.31065468,0.000173,2]
[393232472,1762361443013,-849.27530734,0.000173,2]
[393232473,1762361443031,-418379.37118421,0.000173,2]
[393232474,1762361443045,-151.0,0.000173,2]
[393232475,1762361443058,-151.0,0.000173,2]
[393232476,1762361443071,-151.60162,0.000173,2]
[393232477,1762361443085,-151.0,0.000173,2]
[393232478,1762361443097,-157.249441,0.000173,2]
[393232479,1762361443111,-151.0,0.000173,2]
[393232480,1762361443123,-151.0,0.000173,2]
[393232481,1762361443136,-151.90923,0.000173,2]
[393232482,1762361443149,-158.72139,0.000173,2]
[393232483,1762361443167,-151.0,0.000173,2]
[393232484,1762361443183,-151.0,0.000173,2]
[393232485,1762361443200,-151.0,0.000173,2]
[393232486,1762361443217,-151.0,0.000173,2]
[393232487,1762361443233,-153.340919,0.000173,2]
[393232488,1762361443249,-151.0,0.000173,2]
[393232489,1762361443266,-151.0,0.000173,2]
[393232490,1762361443280,-151.0,0.000173,2]
[393232491,1762361443295,-156.050326,0.000173,2]
[393232492,1762361443309,-566.250768,0.000173,2]
[393232493,1762361443324,-151.0,0.000173,2]
[393232494,1762361443337,-500.0,0.00017315,2]
[393232497,1762361443351,-490.0,0.00017325,2]
[393232499,1762361443364,-3764.0,0.00017333,2]
[393232502,1762361443377,-192.59474214,0.00017352,2]
[393232503,1762361443390,-490.0,0.00017363,2]
[393232504,1762361443405,-1000.0,0.00017394,2]
[393232505,1762361443418,-5888.0,0.00017396,2]
[393232506,1762361443431,-1425.0,0.00017396,2]
[393232507,1762361443445,-152.03,0.000174,2]
[393232508,1762361443458,-150.0,0.000174,2]
[393232509,1762361443472,-176.88,0.000174,2]
[393232510,1762361443486,-176.88,0.000174,2]
[393232511,1762361443500,-150.0,0.000174,2]
[393232512,1762361443513,-176.88,0.000174,2]
[393232513,1762361443527,-176.88,0.000174,2]
[393232514,1762361443539,-176.88,0.000174,2]
[393232515,1762361443552,-150.0,0.000174,2]
[393232516,1762361443565,-176.88,0.000174,2]
[393232517,1762361443578,-150.0,0.000174,2]
[393232518,1762361443590,-176.88,0.000174,2]
[393232519,1762361443604,-176.88,0.000174,2]
[393232520,1762361443620,-176.88,0.000174,2]
[393232521,1762361443634,-176.88,0.000174,2]
[393232522,1762361443649,-176.88,0.000174,2]
[393232523,1762361443661,-176.88,0.000174,2]
[393232524,1762361443676,-150.0,0.000174,2]
[393232525,1762361443690,-176.88,0.000174,2]
[393232526,1762361443703,-698.44,0.000174,2]
[393232527,1762361443716,-176.88,0.000174,2]
[393232528,1762361443730,-150.0,0.000174,2]
[393232529,1762361443745,-176.88,0.000174,2]
[393232530,1762361443756,-176.88,0.000174,2]
[393232531,1762361443766,-150.0,0.000174,2]
[393232532,1762361443775,-176.88,0.000174,2]
[393232533,1762361443785,-150.0,0.000174,2]
[393232534,1762361444041,-1396.88,0.000174,2]
[393232535,1762361444067,-176.88,0.000174,2]
[393232536,1762361444083,-176.88,0.000174,2]
[393232537,1762361444092,-176.88,0.000174,2]
[393232538,1762361444102,-150.0,0.000174,2]
[393232539,1762361444112,-1396.88,0.000174,2]
[393232540,1762361444121,-252.708,0.000174,2]
[393232541,1762361444132,-176.88,0.000174,2]
[393232542,1762361444142,-415.63,0.000174,2]
[393232543,1762361444151,-415.63,0.000174,2]
[393232544,1762361444160,-300.0,0.000174,2]
[393232545,1762361444170,-353.76,0.000174,2]
[393232546,1762361444181,-150.0,0.000174,2]
[393232547,1762361444193,-415.63,0.000174,2]
[393232548,1762361444204,-300.0,0.000174,2]
[393232549,1762361444214,-176.88,0.000174,2]
[393232550,1762361444224,-150.0,0.000174,2]
[393232551,1762361444235,-415.63,0.000174,2]
[393232552,1762361444246,-305.23,0.000174,2]
[393232553,1762361444256,-176.88,0.000174,2]
[393232554,1762361444266,-176.88,0.000174,2]
[393232555,1762361444277,-176.88,0.000174,2]
[393232556,1762361444286,-415.63,0.000174,2]
[393232557,1762361444298,-150.0,0.000174,2]
[393232558,1762361444307,-698.44,0.000174,2]
[393232559,1762361444318,-176.88,0.000174,2]
[393232560,1762361444327,-415.63,0.000174,2]
[393232561,1762361444335,-150.0,0.000174,2]
[393232562,1762361444345,-698.44,0.000174,2]
[393232563,1762361444355,-353.76,0.000174,2]
[393232564,1762361444365,-353.48,0.000174,2]
[393232565,1762361444374,-698.44,0.000174,2]
[393232566,1762361444383,-176.88,0.000174,2]
[393232567,1762361444392,-150.0,0.000174,2]
[393232568,1762361444402,-698.44,0.000174,2]
[393232569,1762361444412,-169.01,0.000174,2]
[393232570,1762361444422,-698.44,0.000174,2]
[393232571,1762361444431,-168.7,0.000174,2]
[393232572,1762361444440,-300.0,0.000174,2]
[393232573,1762361444450,-698.44,0.000174,2]
[393232574,1762361444460,-698.44,0.000174,2]
[393232575,1762361444469,-169.01,0.000174,2]
[393232576,1762361444478,-176.88,0.000174,2]
[393232577,1762361444487,-169.01,0.000174,2]
[393232578,1762361444496,-150.0,0.000174,2]
[393232579,1762361444506,-1395.08,0.000174,2]
[393232580,1762361444517,-169.01,0.000174,2]
[393232581,1762361444527,-150.0,0.000174,2]
[393232582,1762361444539,-176.88,0.000174,2]
[393232583,1762361444550,-169.01,0.000174,2]
[393232584,1762361444558,-6874.50742558,0.00017411,2]
[393232585,1762361444569,-165.81245706,0.00017411,2]
[393232586,1762361444579,-150.0,0.00017414,2]
[393232587,1762361444587,-209.05525812,0.00017416,2]
[393232588,1762361444596,-150.0,0.00017416,2]
[393232589,1762361444605,-150.0,0.00017416,2]
[393232590,1762361444615,-150.0,0.00017416,2]
[393232591,1762361444624,-150.0,0.00017416,2]
[393232592,1762361444634,-150.0,0.00017416,2]
[393232593,1762361444643,-295.33139851,0.00017416,2]
[393232594,1762361444652,-150.0,0.00017416,2]
[393232595,1762361444662,-150.0,0.00017416,2]
[393232596,1762361444671,-500.0,0.00017416,2]
[393232597,1762361444680,-150.0,0.00017416,2]
[393232598,1762361444689,-150.0,0.00017416,2]
[393232599,1762361444698,-150.38503355,0.00017416,2]
[393232600,1762361444708,-150.0,0.00017416,2]
[393232601,1762361444717,-150.0,0.00017416,2]
[393232602,1762361444727,-150.0,0.00017416,2]
[393232603,1762361444736,-150.0,0.00017416,2]
[393232604,1762361444744,-150.0,0.00017416,2]
[393232605,1762361444754,-500.0,0.00017416,2]
[393232606,1762361444763,-150.0,0.00017416,2]
[393232607,1762361444772,-500.0,0.00017416,2]
[393232608,1762361444781,-426.0,0.00017416,2]
[393232609,1762361444790,-150.0,0.00017416,2]
[393232610,1762361444800,-154.26057965,0.00017416,2]
[393232611,1762361444811,-500.0,0.00017416,2]
[393232612,1762361444822,-150.0,0.00017416,2]
[393232613,1762361444831,-150.0,0.00017416,2]
[393232614,1762361444840,-150.0,0.00017416,2]
[393232615,1762361444850,-150.0,0.00017416,2]
[393232616,1762361444860,-500.0,0.00017416,2]
[393232617,1762361444869,-500.0,0.00017416,2]
[393232618,1762361444878,-699.82067501,0.00017418,2]
[393232619,1762361444888,-5309.11,0.0001742,2]
[393232620,1762361444897,-215.81914189,0.0001742,2]
[393232621,1762361444906,-191.71435199,0.00017429,2]
[393232622,1762361444915,-490.0,0.00017429,2]
[393232623,1762361444924,-1425.0,0.0001743,2]
[393232624,1762361444933,-200.0,0.00017444,2]
[393232625,1762361444942,-178.86631507,0.00017447,2]
[393232626,1762361444951,-773.8,0.00017447,2]
[393232627,1762361444961,-1425.0,0.0001745,2]
[393232628,1762361444969,-1425.0,0.00017451,2]
[393232629,1762361444978,-500.0,0.00017459,2]
[393232630,1762361444987,-200.0,0.00017459,2]
[393232631,1762361444997,-174.55969353,0.00017479,2]
[393232632,1762361445007,-174.55969355,0.00017479,2]
[393232633,1762361445015,-176.88,0.000175,2]
[393232634,1762361445025,-150.0,0.000175,2]
[393232635,1762361445034,-1425.0,0.00017507,2]
[393232636,1762361445043,-6874.50742558,0.00017533,2]
[393232637,1762361445053,-165.81245706,0.00017533,2]
[393232638,1762361445062,-490.0,0.00017534,2]
[393232639,1762361445071,-1425.0,0.00017537,2]
[393232640,1762361445080,-356.99118559,0.0001755,2]
[393232641,1762361445089,-150.0,0.00017552,2]
[393232642,1762361445098,-150.0,0.00017553,2]
[393232643,1762361445107,-150.0,0.00017553,2]
[393232644,1762361445117,-158.86102011,0.00017553,2]
[393232645,1762361445126,-150.0,0.00017553,2]
[393232646,1762361445135,-150.0,0.00017553,2]
[393232647,1762361445145,-217.3955486,0.00017553,2]
[393232648,1762361445154,-500.0,0.00017553,2]
[393232649,1762361445163,-151.13904288,0.00017553,2]
[393232650,1762361445173,-150.0,0.00017553,2]
[393232651,1762361445183,-150.0,0.00017553,2]
[393232652,1762361445193,-150.0,0.00017553,2]
[393232653,1762361445202,-500.0,0.00017553,2]
[393232654,1762361445212,-500.0,0.00017553,2]
[393232655,1762361445223,-426.0,0.00017553,2]
[393232656,1762361445234,-150.0,0.00017553,2]
[393232657,1762361445244,-500.0,0.00017553,2]
[393232658,1762361445253,-150.0,0.00017553,2]
[393232659,1762361445264,-150.0,0.00017553,2]
[393232660,1762361445277,-500.0,0.00017553,2]
[393232661,1762361445287,-500.0,0.00017553,2]
[393232662,1762361445297,-490.0,0.00017572,2]
[393232663,1762361445306,-191.71435199,0.00017586,2]
[393232664,1762361445316,-500.0,0.00017595,2]
[393232665,1762361445326,-500.0,0.00017599,2]
[393232666,1762361445336,-500.0,0.00017599,2]
[393232667,1762361445345,-500.0,0.00017599,2]
[393232668,1762361445355,-500.0,0.00017599,2]
[393232669,1762361445364,-500.0,0.00017599,2]
[393232670,1762361445374,-500.0,0.00017599,2]
[393232671,1762361445383,-500.0,0.00017599,2]
[393232672,1762361445392,-500.0,0.00017599,2]
[393232673,1762361445401,-500.0,0.00017599,2]
[393232674,1762361445411,-500.0,0.00017599,2]